[Event "86th Tata Steel Masters 2024"]
[Site "Scheveningen"]
[Date "2024.01.23"]
[Round "9.1"]
[White "Donchenko, Alexander"]
[Black "Firouzja, Alireza"]
[Result "1-0"]
[ECO "D38"]
[WhiteElo "2643"]
[BlackElo "2759"]
[Annotator "TA"]
[PlyCount "69"]
[EventDate "2024.01.02"]
[EventType "tourn"]
[EventCountry "NED"]
[SourceTitle "playchess.com"]
[Source "ChessBase"]
[SourceQuality "1"]
[TimeControl "40/6000+30:20/3000+30:900+30"]

{[%evp 12,69,27,20,22,14,10,19,13,20,16,10,15,5,14,6,8,13,18,18,17,20,21,0,0,0,4,6,8,-26,-16,-67,0,-16,-14,-18,0,0,0,0,0,9,91,83,99,82,158,103,101,98,105,104,106,100,97,66,393,379,594,590]} 1. d4 {[%emt 0:00:03]} d5 {[%emt 0:00:05]} 2. c4 {[%emt 0:00:20]} e6 {[%emt 0:00:06]} 3. Nc3 {[%emt 0:00:43]} Nf6 {[%emt 0:00:09]} 4. cxd5 {[%emt 0:00:25]} exd5 {[%emt 0:00:06]} 5. Bg5 {[%emt 0:00:21]} Bb4 {[%emt 0:00:15]} 6. Nf3 {[%emt 0:04:39]} Nbd7 {[%emt 0:02:42]} 7. e3 {[%emt 0:02:30]} h6 {[%emt 0:01:48]} 8. Bh4 {[%emt 0:02:08]} g5 {[%emt 0:00:07]} 9. Bg3 {[%emt 0:00:12]} Ne4 {[%emt 0:00:07] Die Stellung ist ausgeglichen.} 10. Nd2 {[%emt 0:13:08] Droht stark Ndxe4.} Nxg3 {[%emt 0:04:51]} 11. hxg3 {[%emt 0:00:55]} Nb6 {[%emt 0:03:59]} 12. Bd3 {[%emt 0:08:07]} Be6 {[%emt 0:02:13]} 13. a3 {[%emt 0:02:39]} Bd6 {[%emt 0:08:07]} 14. Qf3 {[%emt 0:08:53]} g4 {[%emt 0:14:46]} 15. Qe2 {[%emt 0:00:29]} c6 {[%emt 0:04:31]} 16. Rh5 {[%emt 0:12:54]} Nd7 {[%emt 0:08:26]} 17. e4 {[%emt 0:08:25]} Nf6 {[%emt 0:01:50]} 18. exd5 {[%emt 0:00:31]} cxd5 {[%emt 0:04:28]} 19. Rh1 {[%emt 0:02:11]} Kf8 {[%emt 0:04:52]} 20. Qe3 {[%emt 0:05:46]} Kg7 {[%emt 0:02:09]} 21. Nb5 {[%emt 0:03:07]} (21. Bc2 $11) 21... Rc8 {[%emt 0:10:24]} ({Günstiger ist} 21... Be7 $15 22. Nb3 Bd7) 22. Nxd6 {[%emt 0:09:23]} Qxd6 {[%emt 0:00:14]} 23. Kf1 {[%emt 0:00:07]} Qb6 {[%emt 0:04:31]} 24. Rb1 {[%emt 0:00:38]} Bd7 {[%emt 0:05:37]} 25. Kg1 {[%emt 0:00:30]} Rce8 {[%emt 0:07:36]} 26. Qf4 {[%emt 0:00:13]} Bb5 {[%emt 0:00:04]} (26... Re7 $11 {hält das Gleichgewicht.}) 27. Bf5 $16 {[%emt 0:01:28][%cal Bd3f5,Bf5g4,Bg4f3,Bf3h5][%mdl 32]} Be2 {[%emt 0:00:41]} 28. Rh4 {[%emt 0:04:39]} Qb5 {[%emt 0:05:33]} (28... h5 $142) 29. Rc1 {[%emt 0:03:40]} (29. Re1 $142) 29... Bd3 {[%emt 0:10:44] [#]} 30. Rc5 $1 {[%emt 0:04:41]} (30. Bxg4 $6 Qxb2 31. Nf3 Re4 $11 (31... Qxa3 32. Ne5 $16)) 30... Qa6 {[%emt 0:00:05]} 31. Bxg4 {[%emt 0:00:22] Weiß steht aktiver.} Re1+ {[%emt 0:01:19]} 32. Kh2 {[%emt 0:00:06]} h5 {[%emt 0:01:10]} 33. Bf3 {[%emt 0:05:32][%cal Og3g4] g4! ist eine echte Drohung.} Rh6 $2 {[%emt 0:02:46][%mdl 8192]} (33... Qe6 $14) 34. Rc7 $1 $18 {[%emt 0:01:51] Und g4 würde nun gewinnen.} (34. Bxd5 $2 {ist das falsche Schlagen.} Ng4+ $19) 34... Rh7 {[%emt 0:00:18] [#]} (34... Qe6 {ist eine bessere Verteidigung.} 35. g4 (35. Rxb7 Be2 $18) 35... Ne8 36. Rxb7 a5 37. gxh5 (37. Rxh5 Rf6 $18) 37... Rf6 38. Qg5+ Kh8 39. Qxd5 (39. Bxd5 Qd6+ 40. f4 Rf5 $18) 39... Qxd5 40. Bxd5 Nd6) 35. Bxh5 $1 {[%emt 0:02:25][%mdl 512] Gewichteter Fehlerwert: Weiß=0.10 (sehr präzise) /Schwarz=0.40.  Verlustzug:     	---       	Schwarz=1     Fehler:       	Weiß=2     	Schwarz=4     Ungenau:       	Weiß=2     	---        OK:         	Weiß=10    	Schwarz=11    Bester:       	Weiß=3     	Schwarz=2     Stark:        	Weiß=2     	---} 1-0

[Event "86th Tata Steel Masters 2024"]
[Site "Scheveningen"]
[Date "2024.01.23"]
[Round "9.2"]
[White "Ding, Liren"]
[Black "Giri, Anish"]
[Result "1/2-1/2"]
[ECO "D31"]
[WhiteElo "2780"]
[BlackElo "2749"]
[Annotator "TA"]
[PlyCount "67"]
[EventDate "2024.01.02"]
[EventType "tourn"]
[EventCountry "NED"]
[SourceTitle "playchess.com"]
[Source "ChessBase"]
[SourceQuality "1"]
[TimeControl "40/6000+30:20/3000+30:900+30"]

{[%evp 14,67,14,3,22,0,0,0,0,0,0,0,0,0,0,0,0,0,-14,-2,-21,-37,-31,-47,6,0,0,0,0,0,0,0,0,0,0,0,0,-14,0,0,0,0,0,-46,0,-50,0,0,0,-8,-20,-77,0,0,0,-83]} 1. c4 {[%emt 0:00:06]} e6 {[%emt 0:00:04]} 2. Nc3 {[%emt 0:00:10]} d5 {[%emt 0:00:04]} 3. d4 {[%emt 0:00:04]} Be7 {[%emt 0:00:04]} 4. cxd5 {[%emt 0:01:29]} exd5 {[%emt 0:00:06]} 5. Bf4 {[%emt 0:00:04]} c6 {[%emt 0:00:09]} 6. e3 {[%emt 0:01:52]} Bf5 {[%emt 0:00:13]} 7. g4 {[%emt 0:06:36]} Be6 {[%emt 0:00:19]} 8. h3 {[%emt 0:00:06]} Nd7 {[%emt 0:00:25][%cal Oh7h5] 8...Nd7 scores better than 8...Nf6. D31: Queen's Gambit Declined: Semi-Slav without ...Nf6 (+ Marshall Gambit and Noteboom) and Exchange Variation lines without ...Nf6.} 9. Bd3 {[%emt 0:08:46]} (9. Qb3 $5 {[%cal Rb3b7]}) 9... h5 {[%emt 0:00:30]} 10. gxh5 {[%emt 0:00:10]} Ngf6 {[%emt 0:00:04]} 11. h6 {[%emt 0:00:57]} g6 {[%emt 0:00:12]} 12. Qc2 {[%emt 0:04:27]} Nh5 {[%emt 0:00:53][%cal Bf6h5,Bh5g7,Bg7e6][%mdl 32]} 13. Bh2 {[%emt 0:04:27]} Rxh6 {[%emt 0:00:14]} 14. O-O-O {[%emt 0:00:06]} Ndf6 {[%emt 0:01:34] [#]} 15. Kb1 $146 {[%emt 0:00:34]} ({Predecessor:} 15. Nf3 Ne4 16. Rdg1 Rc8 17. Kb1 Qa5 18. Ka1 Nhf6 19. Bf4 Rh5 20. Ng5 Nxg5 21. Rxg5 Rxh3 22. Rxh3 Bxh3 {½-½ Dunlop,G (2503)-Malchev,E (2394) olm21 sf02 email 2016 [2]}) 15... Bd6 {[%emt 0:02:48]} 16. Nf3 {[%emt 0:12:04]} Bxh2 {[%emt 0:02:46]} 17. Rxh2 {[%emt 0:00:04]} Ng7 {[%emt 0:00:25]} 18. Ne5 {[%emt 0:06:29]} Bf5 {[%emt 0:27:32]} (18... Nd7 $15) 19. f3 {[%emt 0:13:51]} Bxd3 {[%emt 0:00:20]} 20. Rxd3 {[%emt 0:00:10]} Ne6 {[%emt 0:03:17]} 21. e4 {[%emt 0:05:09]} Kf8 {[%emt 0:06:40]} 22. Qb3 {[%emt 0:07:19]} Qe7 {[%emt 0:02:34]} 23. exd5 {[%emt 0:10:42]} Nxd5 {[%emt 0:02:42]} 24. Nxd5 {[%emt 0:00:09]} cxd5 {[%emt 0:00:04]} 25. a3 {[%emt 0:00:35]} (25. Qxd5 $2 Nf4 26. Qb5 Nxd3 27. Qxd3 Rd8 $19) 25... Kg7 {[%emt 0:01:04]} 26. f4 {[%emt 0:03:38]} (26. Qxd5 $2 Nf4 27. Qc4 Nxd3 28. Qxd3 Qe6 $19) 26... Rh5 {[%emt 0:04:56]} (26... Nxf4 27. Rf2 g5 28. Rg3 $16) 27. Rf2 {[%emt 0:04:36]} Rf5 {[%emt 0:01:20]} 28. Rd1 {[%emt 0:00:19]} (28. Qxd5 $2 Nxf4 29. Qb3 Nxd3 30. Rxf5 gxf5 $19) (28. Rg3 $11) 28... Rd8 {[%emt 0:03:58]} (28... Nxf4 29. Rdf1 Qg5 30. Qxb7 $16) (28... Rxf4 29. Rxf4 Nxf4 30. Rf1 $14) (28... Rh8 $15) 29. Ka2 {[%emt 0:00:37]} (29. Rg1 $11) 29... Qh4 {[%emt 0:07:09]} (29... Rxf4 30. Rxf4 Nxf4 31. Rf1 $14) (29... Nxf4 $2 30. Rdf1 Qg5 31. Qxb7 $18) (29... Rh8 $1 $15) 30. Rff1 {[%emt 0:01:35]} b6 {[%emt 0:01:15]} 31. Qa4 {[%emt 0:01:02]} Qe7 {[%emt 0:01:38]} 32. Qb3 {[%emt 0:00:06]} (32. Nc6 Qe8 33. Qb5 Nc7 $17) (32. Rde1 $11 {keeps the balance.}) 32... Qh4 {[%emt 0:00:12]} ({Don't take} 32... Rxf4 33. Nc6 Qh4 34. Nxd8 (34. Nxa7 Rxf1 35. Rxf1 Nxd4 $17) 34... Qxd8 35. Rxf4 Nxf4 36. Qe3 $16) 33. Qa4 {[%emt 0:00:03]} Qe7 {[%emt 0:00:04]} 34. Qb3 {[%emt 0:00:03] Weighted Error Value: White=0.10 (very precise) /Black=0.11 (very precise)} ({Of course not} 34. Nc6 Qe8 35. Qb5 Nc7 $17) 1/2-1/2

[Event "86th Tata Steel Masters 2024"]
[Site "Scheveningen"]
[Date "2024.01.23"]
[Round "9.3"]
[White "Gukesh D"]
[Black "Vidit, Santosh Gujrathi"]
[Result "1/2-1/2"]
[ECO "C42"]
[WhiteElo "2725"]
[BlackElo "2742"]
[Annotator "TA"]
[PlyCount "62"]
[EventDate "2024.01.02"]
[EventType "tourn"]
[EventCountry "NED"]
[SourceTitle "playchess.com"]
[Source "ChessBase"]
[SourceQuality "1"]
[TimeControl "40/6000+30:20/3000+30:900+30"]

{[%evp 21,62,18,18,18,18,18,18,14,13,15,17,19,16,15,27,12,24,6,8,9,15,10,22,6,16,0,9,0,0,0,0,0,0,0,0,0,0,0,0,0,0,-8,0]} 1. e4 {[%emt 0:00:03]} e5 {[%emt 0:01:07]} 2. Nf3 {[%emt 0:00:22]} Nf6 {[%emt 0:00:17]} 3. Nxe5 {[%emt 0:02:12]} d6 {[%emt 0:00:11]} 4. Nf3 {[%emt 0:00:05]} Nxe4 {[%emt 0:00:09]} 5. d4 {[%emt 0:01:37]} d5 {[%emt 0:00:21]} 6. Bd3 {[%emt 0:00:06]} Bd6 {[%emt 0:00:15]} 7. O-O {[%emt 0:00:22]} O-O {[%emt 0:00:07]} 8. c4 {[%emt 0:00:10]} c6 {[%emt 0:00:09]} 9. Nc3 {[%emt 0:07:48]} Nxc3 {[%emt 0:00:13]} 10. bxc3 {[%emt 0:00:05]} dxc4 {[%emt 0:00:11]} 11. Bxc4 {[%emt 0:00:05]} Bf5 {[%emt 0:00:12]} 12. Bg5 {[%emt 0:02:44] C42: Petroff Defence: 3 Nxe5 and unusual White 3rd moves.} Qa5 {[%emt 0:02:37]} 13. Nh4 {[%emt 0:01:15]} Be6 {[%emt 0:00:37]} 14. Bxe6 {[%emt 0:00:06] [#] Strongly threatening Bf5.} Qxg5 {[%emt 0:00:09]} 15. Nf3 {[%emt 0:00:04]} Qa5 {[%emt 0:00:12]} 16. Bb3 {[%emt 0:00:07]} Nd7 {[%emt 0:02:11]} 17. Qd3 {[%emt 0:01:07]} Nf6 {[%emt 0:06:08]} 18. Rfe1 {[%emt 0:02:36]} Rae8 {[%emt 0:04:12]} 19. h4 {[%emt 0:03:56]} g6 {[%emt 0:33:11] The position is equal.} 20. g3 {[%emt 0:16:26]} Kg7 {[%emt 0:02:23]} 21. Kg2 {[%emt 0:00:16]} h6 {[%emt 0:02:30]} 22. Nd2 {[%emt 0:02:44]} Qd8 {[%emt 0:05:24]} 23. Qf3 {[%emt 0:08:50] [#]} h5 $146 {[%emt 0:04:21]} ({Predecessor:} 23... Bc7 24. Rxe8 Qxe8 25. Rb1 Qe7 26. Bd1 Rb8 27. Qd3 h5 28. Bf3 c5 29. dxc5 Qxc5 30. Rxb7 {½-½ Ochsner,B (2491)-Papp,G (2589) DEN-chT 1920 58th 2019 (6.3)}) 24. a4 {[%emt 0:10:35]} Bc7 {[%emt 0:10:34]} 25. Bc4 {[%emt 0:01:34]} Qd7 {[%emt 0:03:25]} 26. Qd3 {[%emt 0:12:55]} Rxe1 {[%emt 0:02:40]} 27. Rxe1 {[%emt 0:00:05]} Re8 {[%emt 0:00:06]} 28. Rxe8 {[%emt 0:02:27]} Qxe8 {[%emt 0:00:26]} 29. Kf1 {[%emt 0:04:42]} Qe7 {[%emt 0:02:18]} 30. Bb3 {[%emt 0:06:41]} a6 {[%emt 0:04:03]} 31. Qf3 {[%emt 0:07:32]} Qe8 {[%emt 0:03:24] A balanced but interesting game.   Weighted Error Value: White=0.04 (flawless) /Black=0.01 (flawless)} 1/2-1/2

[Event "86th Tata Steel Masters 2024"]
[Site "Scheveningen"]
[Date "2024.01.23"]
[Round "9.5"]
[White "Abdusattorov, Nodirbek"]
[Black "Van Foreest, Jorden"]
[Result "1-0"]
[ECO "C24"]
[WhiteElo "2727"]
[BlackElo "2682"]
[Annotator "TA"]
[PlyCount "47"]
[EventDate "2024.01.02"]
[EventType "tourn"]
[EventCountry "NED"]
[SourceTitle "playchess.com"]
[Source "ChessBase"]
[SourceQuality "1"]
[TimeControl "40/6000+30:20/3000+30:900+30"]

{[%evp 12,47,33,35,57,29,43,37,58,43,114,135,154,163,155,100,98,102,97,100,106,97,108,127,136,137,156,179,172,175,188,138,297,272,337,337,347,231]} 1. e4 {[%emt 0:00:24]} e5 {[%emt 0:00:22]} 2. Nf3 {[%emt 0:00:09]} Nc6 {[%emt 0:00:17]} 3. Bc4 {[%emt 0:00:10]} Nf6 {[%emt 0:00:18]} 4. d3 {[%emt 0:00:14]} d5 {[%emt 0:01:09]} 5. exd5 {[%emt 0:00:09]} Nxd5 {[%emt 0:00:07]} 6. O-O {[%emt 0:00:12]} Be7 {[%emt 0:01:07]} 7. Re1 {[%emt 0:00:41]} f6 {[%emt 0:01:13] C24: Bishop's Opening: 2...Nf6.} 8. Bb3 $5 {[%emt 0:01:17][%mdl 4] [#] A promising side line.} a5 $146 {[%emt 0:02:44]} ({Predecessor:} 8... Na5 9. Nxe5 O-O 10. Bxd5+ Qxd5 11. Nc3 Qd8 12. Bd2 fxe5 13. Rxe5 Nc6 14. Re1 Bc5 15. Be3 Bxe3 16. Rxe3 {0-1 Goehring,D-Boettner,J Rangliste 1200-1500 18054 2014}) 9. c3 {[%emt 0:01:15]} Nb6 {[%emt 0:01:57] White is slightly better.} 10. Nh4 {[%emt 0:04:25] Hoping for Qh5+.} g6 {[%emt 0:03:08] Inhibits Qh5.} (10... a4 $14 11. Qh5+ Kd7) 11. a4 $1 $16 {[%emt 0:00:43]} Bd6 {[%emt 0:24:31] [#]} 12. d4 $1 {[%emt 0:03:39]} Qe7 {[%emt 0:00:13]} 13. Be3 {[%emt 0:06:12]} (13. Bh6 $142) 13... Bd7 {[%emt 0:15:42]} 14. dxe5 {[%emt 0:04:50][%mdl 64] Discovered Attack} fxe5 {[%emt 0:02:11]} 15. Nf3 {[%emt 0:00:06][%cal Bh4f3,Bf3d2,Bd2c4][%mdl 32]} h6 {[%emt 0:03:55]} 16. Nbd2 {[%emt 0:01:08] Strongly threatening Ne4.} O-O-O {[%emt 0:00:17]} 17. Ne4 {[%emt 0:00:46] aiming for Nxd6+.} Bf5 {[%emt 0:00:24]} 18. Nfd2 {[%emt 0:05:22] White is more active.} Nd7 {[%emt 0:18:57] [#]} 19. Bd5 $1 {[%emt 0:02:48]} Nc5 {[%emt 0:03:09]} 20. Qe2 {[%emt 0:04:52] Qb5 would be deadly.} Nb8 {[%emt 0:05:52]} 21. Rad1 {[%emt 0:09:40]} ({Better is} 21. f3 $18) 21... Nba6 $2 {[%emt 0:06:06]} (21... Nxe4 $16 22. Nxe4 (22. Bxe4 Qe8 $16) 22... c6) 22. Nxd6+ $18 {[%emt 0:00:51] White has a decisive advantage.} cxd6 {[%emt 0:02:33]} 23. Nc4 {[%emt 0:01:11]} Qc7 {[%emt 0:00:10]} 24. Qd2 {[%emt 0:03:11] Weighted Error Value: White=0.09 (flawless) /Black=0.23 (precise)} 1-0

[Event "86th Tata Steel Masters 2024"]
[Site "Scheveningen"]
[Date "2024.01.23"]
[Round "9.6"]
[White "Wei, Yi"]
[Black "Nepomniachtchi, Ian"]
[Result "1-0"]
[ECO "C24"]
[WhiteElo "2740"]
[BlackElo "2769"]
[Annotator "TA"]
[PlyCount "81"]
[EventDate "2024.01.02"]
[EventType "tourn"]
[EventCountry "NED"]
[SourceTitle "playchess.com"]
[Source "ChessBase"]
[SourceQuality "1"]
[TimeControl "40/6000+30:20/3000+30:900+30"]

{[%evp 12,81,16,0,15,0,15,15,14,16,16,15,20,20,11,0,0,0,16,14,22,14,48,43,32,37,38,37,51,29,82,42,44,39,85,75,118,120,239,227,237,235,235,166,146,156,164,158,150,162,202,150,153,153,197,197,206,205,337,353,318,340,303,309,519,509,495,486,492,508,823,837]} 1. e4 {[%emt 0:00:05]} e5 {[%emt 0:00:07]} 2. Bc4 {[%emt 0:00:09]} Nf6 {[%emt 0:00:06]} 3. d3 {[%emt 0:00:05]} c6 {[%emt 0:00:11]} 4. Nf3 {[%emt 0:00:06]} d5 {[%emt 0:00:14]} 5. Bb3 {[%emt 0:00:07]} Bb4+ {[%emt 0:00:25]} 6. Bd2 {[%emt 0:00:17]} Bxd2+ {[%emt 0:00:26]} 7. Nbxd2 {[%emt 0:00:13]} a5 {[%emt 0:01:11] Hoping for ...a4. C24: Bishop's Opening: 2...Nf6.} 8. a4 {[%emt 0:00:23]} (8. Nxe5 $2 a4 9. O-O axb3 10. axb3 Rxa1 11. Qxa1 O-O $19) 8... Nbd7 {[%emt 0:05:35]} 9. O-O {[%emt 0:00:13]} O-O {[%emt 0:01:04] The position is equal.} 10. Re1 {[%emt 0:00:23]} Re8 {[%emt 0:01:00]} 11. exd5 {[%emt 0:00:18]} cxd5 {[%emt 0:01:18]} 12. Nb1 {[%emt 0:00:11]} b6 {[%emt 0:04:04]} 13. Nc3 {[%emt 0:00:33]} Bb7 {[%emt 0:00:09]} 14. Nb5 {[%emt 0:00:14]} Qb8 {[%emt 0:01:31] [#] Inhibits Nd6.} 15. d4 $146 {[%emt 0:03:21]} ({Predecessor:} 15. Nh4 Bc6 16. Nf5 g6 17. Nh6+ Kg7 18. Qd2 Bxb5 19. axb5 Qd6 20. Qg5 Qb4 21. Nf5+ {0-1 Stockova,Z (2383)-Khademalsharieh,S (2324) Olympiad Women-41 2014 (4.2)}) 15... e4 {[%emt 0:00:46]} 16. Nd2 {[%emt 0:00:07]} Bc6 {[%emt 0:06:07]} 17. c4 {[%emt 0:12:32]} Bxb5 {[%emt 0:01:53]} 18. axb5 {[%emt 0:03:31]} Qf4 {[%emt 0:01:10] White must now prevent ...Ng4.} 19. g3 {[%emt 0:04:39]} Qf5 {[%emt 0:03:39]} 20. cxd5 $1 {[%emt 0:02:56]} Rad8 {[%emt 0:17:45]} (20... h5 $1 $11 {keeps the balance.}) 21. f3 {[%emt 0:33:37]} (21. Qc2 {simplifies} g6 22. f3 exf3 23. Qxf5 gxf5 24. Nxf3 Ne4 25. Rac1) 21... exf3 {[%emt 0:17:25]} (21... e3 22. Nc4 $16) 22. Qxf3 {[%emt 0:00:09]} Qg5 {[%emt 0:00:15]} (22... Rxe1+ $14 23. Rxe1 Qxf3 24. Nxf3 Re8) 23. Nc4 $16 {[%emt 0:06:56]} h5 {[%emt 0:07:11]} 24. d6 {[%emt 0:05:53]} Kf8 {[%emt 0:08:20] [#] Wards off Re7} (24... h4 $16 25. Re7 Rxe7 26. dxe7 Re8) 25. Re7 $1 $18 {[%emt 0:07:38][%mdl 576] Decoy} Rxe7 {[%emt 0:03:19]} 26. dxe7+ {[%emt 0:00:04]} Kxe7 {[%emt 0:00:02]} 27. Re1+ {[%emt 0:01:38]} (27. h4 Qxb5 28. Qe3+ (28. Na3 Qb4 $17) 28... Kf8 $11) 27... Kf8 {[%emt 0:00:04] [#]} 28. Nd6 {[%emt 0:00:40]} Qd2 {[%emt 0:03:13]} 29. Qc3 {[%emt 0:04:01]} Qxc3 {[%emt 0:04:39]} 30. bxc3 {[%emt 0:00:04]} g6 {[%emt 0:04:16]} 31. h3 {[%emt 0:01:08] Repels Ng4} (31. Nxf7 $6 Rc8 $16) 31... a4 {[%emt 0:01:27]} 32. Ba2 {[%emt 0:02:13] White has more active pieces.} (32. Bxf7 $6 Nb8 $14) (32. Nxf7 Rc8 33. Nd6 Rxc3 34. Bxa4 Rxg3+ 35. Kh2 Rd3 $15) 32... a3 {[%emt 0:00:06]} 33. Kg2 {[%emt 0:04:10]} (33. Nxf7 $6 Re8 34. Ne5 Kg7 $16) (33. Bxf7 Nb8 34. Bxg6 Rxd6 $17) 33... Ra8 {[%emt 0:02:35]} 34. Kf3 {[%emt 0:03:27]} (34. Bxf7 a2 35. Ra1 Ke7 36. Rxa2 Rxa2+ 37. Bxa2 Kxd6 $15) (34. Nxf7 $6 Re8 35. Rxe8+ Nxe8 $14) 34... Ra5 {[%emt 0:03:37]} (34... Rd8 {might work better.} 35. Re2 (35. Bxf7 Nb8 $17) 35... Ra8) 35. Kf4 {[%emt 0:04:41]} (35. Bxf7 a2 36. Ra1 Ra3 37. Bxa2 (37. Rxa2 $2 Rxc3+ 38. Kf2 Ke7 $19) 37... Rxc3+ 38. Kg2 Rd3 $11) (35. Nxf7 Rxb5 36. Nd6 Rb2 $14) 35... Ra8 {[%emt 0:02:24]} 36. Kg5 {[%emt 0:03:43]} (36. Bxf7 a2 37. Bxa2 Rxa2 $15) (36. Nxf7 Re8 37. Re3 Rxe3 38. Kxe3 Ne8 $16) 36... Rd8 {[%emt 0:03:28]} 37. Bxf7 {[%emt 0:04:47]} Nb8 $2 {[%emt 0:00:25]} (37... Kg7 {keeps fighting.}) 38. Kxf6 {[%emt 0:00:09] White is clearly winning.} Rxd6+ {[%emt 0:00:03]} 39. Be6 {[%emt 0:00:20]} ({Not} 39. Ke5 Ke7 $18) 39... Nd7+ {[%emt 0:00:24]} 40. Kxg6 {[%emt 0:00:51] Kf5 is the strong threat.} Ne5+ {[%emt 0:00:08]} (40... Ke7 $142 41. Kf5 Kf8) 41. Kf6 {[%emt 0:52:24] Weighted Error Value: White=0.06 (flawless) /Black=0.34} ({Less strong is} 41. Rxe5 a2 42. Rf5+ (42. Kxh5 $2 {is the wrong capture.} a1=Q $19) 42... Ke8 $16) 1-0

[Event "86th Tata Steel Masters 2024"]
[Site "Scheveningen"]
[Date "2024.01.23"]
[Round "9.7"]
[White "Praggnanandhaa R"]
[Black "Ju, Wenjun"]
[Result "1-0"]
[ECO "C58"]
[WhiteElo "2743"]
[BlackElo "2549"]
[Annotator "TA"]
[PlyCount "65"]
[EventDate "2024.01.02"]
[EventType "tourn"]
[EventCountry "NED"]
[SourceTitle "playchess.com"]
[Source "ChessBase"]
[SourceQuality "1"]
[TimeControl "40/6000+30:20/3000+30:900+30"]

{[%evp 14,65,30,39,29,15,15,0,6,-10,30,7,70,29,37,34,15,6,22,18,82,77,89,88,120,82,100,89,108,51,108,119,179,193,191,188,199,203,286,260,295,310,586,585,537,461,665,656,823,821,1020,1022,1227,1209]} 1. e4 {[%emt 0:00:23]} e5 {[%emt 0:00:04]} 2. Nf3 {[%emt 0:00:05]} Nc6 {[%emt 0:00:03]} 3. Bc4 {[%emt 0:00:07]} Nf6 {[%emt 0:00:36]} 4. Ng5 {[%emt 0:00:14]} d5 {[%emt 0:00:09]} 5. exd5 {[%emt 0:00:06]} Na5 {[%emt 0:00:05]} 6. Bb5+ {[%emt 0:00:06]} c6 {[%emt 0:00:34]} 7. dxc6 {[%emt 0:00:08]} bxc6 {[%emt 0:00:04]} 8. Bd3 {[%emt 0:00:08]} Nd5 {[%emt 0:00:33]} 9. h4 {[%emt 0:00:13][%cal Od1f3]} (9. Nxh7 $2 Nf4 10. Be4 Rxh7 $19) 9... Qc7 {[%emt 0:08:34]} 10. b3 {[%emt 0:01:59][%cal Oc1b2]} (10. Nxh7 Be7 11. Qh5 g6 $15 (11... Nf4 12. Nf6+ Bxf6 13. Qxh8+ $16)) 10... h6 {[%emt 0:10:35] Die Stellung ist ausgeglichen.} 11. Ne4 {[%emt 0:01:00]} f5 {[%emt 0:06:32]} 12. Nec3 {[%emt 0:11:48] Droht Nxd5.} Nf6 {[%emt 0:02:59]} (12... Nf4 $11) 13. Bb2 {[%emt 0:06:21]} Bd6 {[%emt 0:06:39]} 14. Na3 {[%emt 0:04:52]} e4 {[%emt 0:03:25]} 15. Qe2 {[%emt 0:03:23]} O-O {[%emt 0:05:24]} 16. Ba6 {[%emt 0:04:01]} (16. Bc4+ Kh7 17. O-O-O Qe7 $15) 16... Be6 {[%emt 0:17:43]} (16... Bxa6 $11 17. Qxa6 Ng4) 17. Nc4 $16 {[%emt 0:02:44]} Bb4 {[%emt 0:00:24]} 18. O-O-O {[%emt 0:05:51]} Nb7 {[%emt 0:06:50]} 19. Bxb7 {[%emt 0:10:23]} Qxb7 {[%emt 0:00:02]} 20. f3 {[%emt 0:01:40][%cal Rf3e4]} Rae8 {[%emt 0:03:49] [#]} 21. Ne5 {[%emt 0:14:00]} ({Viel schwächer wäre} 21. fxe4 $6 Bxc3 22. Bxc3 Nxe4 $11) (21. a3 $1 $16 {[%cal Ra3b4]} Bc5 22. fxe4) 21... c5 {[%emt 0:09:58]} ({Günstiger ist} 21... Nh5 $14) 22. Rhe1 {[%emt 0:09:25]} exf3 {[%emt 0:12:32]} (22... Kh7 $16) 23. gxf3 $18 {[%emt 0:02:08]} Nh5 {[%emt 0:05:38]} 24. Rg1 {[%emt 0:02:23]} c4 {[%emt 0:00:59]} 25. Nxc4 {[%emt 0:02:23] Hervorragende Reitkunst.} ({Bloß nicht} 25. bxc4 $6 Rb8 26. Nb5 a6 $16) 25... Qe7 {[%emt 0:03:10]} (25... Re7 $142 26. Ne5 Bf7) 26. a3 {[%emt 0:09:12]} Bxc3 {[%emt 0:00:30]} 27. Bxc3 {[%emt 0:00:06]} Qxh4 $2 {[%emt 0:00:24]} (27... f4 28. Rde1 Qxh4) 28. Qe5 {[%emt 0:02:39][%cal Rg1g7] [#] Weiss will mit Rxg7+ Matt setzen. Weiß steht klar auf Gewinn.} Qe7 {[%emt 0:05:18]} 29. Rde1 {[%emt 0:02:43] Droht Qh2 und aus. Schwarz hat schwache schwarze Felder} Qd7 {[%emt 0:00:39]} (29... Kh7 $142 30. Nd6 g6) 30. Nd6 {[%emt 0:00:43]} Re7 {[%emt 0:00:05]} 31. Qh2 {[%emt 0:00:36]} Nf6 {[%emt 0:00:58]} 32. Qxh6 {[%emt 0:00:23]} Qxd6 {[%emt 0:00:37]} 33. Bxf6 {[%emt 0:00:09] Gewichteter Fehlerwert: Weiß=0.13 (sehr präzise) /Schwarz=0.52.  Fehler:       	Weiß=1     	Schwarz=7     Ungenau:       	Weiß=2     	Schwarz=2     OK:         	Weiß=7     	Schwarz=3     Bester:       	Weiß=2     	Schwarz=1} 1-0